Cogmind - Beta 16.1 @@@ ROGUE MODE // 2026.04.07 @ 15:56:23 Player: Lyft Result: Destroyed by D-53 Grenadier with Mini Grenade Launcher Performance ------------- Evolutions (0) 0 Regions Visited (2) 400 Robots Destroyed (35) 175 Value Destroyed (569) 569 Prototype IDs (0) 0 Alien Tech Used (0) 0 Bonus (0) 0 TOTAL SCORE: 1144 Bonus ------- None Cogmind --------- Core Integrity 0/250 Matter 25/300 Energy 100/100 System Corruption 3% Temperature Cool (0) Movement Core (1350) Ox26 Location -10/Mines Parts ------- > --- POWER (1) -------- (None) > --- PROPULSION (2) --- (None) > --- UTILITY (2) ------ Huge Storage Unit > --- WEAPON (2) ------- (None) > --- INVENTORY (25) --- Heat Sink Heat Sink Large Storage Unit High-capacity Matter Pod (55) Seismic Detector Armor Integrity Analyzer Hardened Light Armor Plating Hardened Light Armor Plating Hacking Suite Datajack Datajack Mining Laser Peak State ------------ > --- POWER ------------ Ion Engine > --- PROPULSION ------- Light Treads Light Treads > --- UTILITY ---------- Huge Storage Unit Hardened Light Armor Plating > --- WEAPON ----------- Bore Cannon > --- INVENTORY -------- Compact Wheel Heat Sink Heat Sink Large Storage Unit High-capacity Matter Pod Seismic Detector Armor Integrity Analyzer Hardened Light Armor Plating Hardened Light Armor Plating Hacking Suite Datajack Datajack Mining Laser [Rating: 13] Favorites ----------- Power Ion Engine Engine Ion Engine Propulsion Light Treads Treads Light Treads Leg Aluminum Leg Wheel Compact Wheel Utility Huge Storage Unit Device Seismic Detector Storage Huge Storage Unit Protection Hardened Light Armor Plating Weapon Autogun Energy Gun Small Laser Ballistic Gun Autogun Ballistic Cannon Bore Cannon Launcher Grenade Launcher Build | -11 -10 -10 ------- Run | Yrd Mat Min Slots Evolved . | . . . Power . | . . . Propulsion . | . . . Utility . | . . . Weapon . | . . . Parts Attached 21 | 3 13 5 Power 3 | . 2 1 Engine 3 | . 2 1 Core . | . . . Reactor . | . . . Propulsion 6 | 2 2 2 Treads 2 | 1 . 1 Leg . | . . . Wheel 4 | 1 2 1 Hover . | . . . Flight . | . . . Utility 4 | 1 2 1 Device 1 | 1 . . Storage 1 | . 1 . Processor . | . . . Hackware . | . . . Protection 2 | . 1 1 Artifact . | . . . Weapon 8 | . 7 1 Energy Gun 1 | . 1 . Energy Cannon . | . . . Ballistic Gun 5 | . 5 . Ballistic Cannon 1 | . . 1 Launcher 1 | . 1 . Special Weapon . | . . . Impact Weapon . | . . . Slashing Weapon . | . . . Piercing Weapon . | . . . Special Melee Weapon . | . . . Unidentified Prototypes . | . . . Parts Lost 14 | . 2 12 Power 2 | . . 2 Propulsion 5 | . 1 4 Utility 2 | . . 2 Weapon 5 | . 1 4 Highest Loss Streak 12 | . 1 12 To Critical Strikes . | . . . Average Backups 12 | 5 12 14 Power . | 1 1 . Propulsion 1 | 2 1 1 Utility 5 | . 5 8 Weapon 3 | 1 3 1 Tool/Special . | . . . Unused Backups 21 | 6 5 10 Power 1 | 1 . . Propulsion 3 | 2 1 . Utility 9 | 1 1 7 Weapon 6 | 2 3 1 Tool/Special 2 | . . 2 Average Slot Usage (%) 98 | . 99 84 Engine 13 | . 14 12 Treads 14 | . 14 15 Wheel 13 | . 13 8 Device 5 | . 5 . Storage 14 | . 14 14 Protection 8 | . 8 12 Energy Gun 1 | . 1 . Ballistic Gun 24 | . 25 12 Peak Build Rating 13 | 7 12 13 Average Rating 10 | 6 10 10 On Entrance 8 | 6 7 12 Avg Prop Armor Cover (%) 10 | 13 10 9 Naked Turns . | . . . Heaviest Build 99 | 12 96 99 Greatest Support 40 | 20 16 40 Greatest Overweight (x) 28 | . 5 28 Average Overweight (x) 4 | . 4 6 Largest Inventory Capacity 25 | 8 25 25 Average Capacity 23 | 8 23 25 Most Carried 17 | 6 17 16 Average Carried 12 | 4 12 13 Final Capacity 25 | 8 25 25 Final Carried 16 | 5 16 12 Class Distribution -------------------- 100% | Mutant Dominant Class ---------------- Mutant | -10/Materials Mutant | -10/Mines Resources | -11 -10 -10 ----------- Run | Yrd Mat Min Matter Collected 888 | 248 639 1 Remotely . | . . . Salvage Created 975 | 95 752 128 Parts 66 | 8 53 5 Haulers Intercepted 2 | . 2 . Recyclers Shooed 2 | . 2 . Parts Field Recycled . | . . . Retrieved Matter . | . . . Parts Self-Destructed . | . . . Prevented . | . . . Parts Restored . | . . . Kills | -11 -10 -10 ------- Run | Yrd Mat Min Combat Hostiles Destroyed 35 | . 17 18 Guns 14 | . 12 2 Cannons 2 | . . 2 AOE 19 | . 5 14 Classes Destroyed 11 | 2 7 2 Builder 1 | . 1 . Tunneler 3 | 2 1 . Hauler 2 | . 2 . Recycler 5 | 1 4 . Operator 2 | . 2 . Watcher 2 | . 2 . Swarmer 13 | . 12 1 Grunt 4 | . 3 1 Demolisher 1 | . . 1 Subdweller 2 | . 2 . Assembled 15 | . . 15 Best Kill Streak 16 | 1 7 16 Combat Bots Only 16 | . 5 16 Max Kills in Single Turn 4 | 1 2 4 Gunslinging . | . . . Exploded 4 | . 2 4 Melee . | . . . Uniques/NPCs Destroyed . | . . . Combat | -11 -10 -10 -------- Run | Yrd Mat Min Hostile Shots Fired 159 | . 49 110 Missed 41 | . 13 28 Hits 118 | . 36 82 Melee 4 | . . 4 Projectile 114 | . 36 78 AOE 10 | . . 10 Critical Strikes 2 | . . 2 Damage Taken 1947 | . 456 1491 Core 253 | . 54 199 Absorbed by Shields . | . . . Core Remaining (%) 100 | 100 . . Volleys Fired 95 | 6 58 31 Largest 2 | 2 2 2 Hottest 60 | 60 60 48 Shots Fired 165 | 12 111 42 Gun 142 | 12 106 24 Cannon 11 | . . 11 Launcher 12 | . 5 7 Special . | . . . Kinetic 143 | 6 102 35 Thermal 10 | 6 4 . Explosive 12 | . 5 7 Electromagnetic . | . . . Robot Hit Streak 7 | 6 7 5 Robot Miss Streak 4 | 1 4 3 Penetration Max . | . . . Secondary Targets 2 | . 1 1 Max Gunslinging Chain 1 | . 1 1 Shots Hit Robots 93 | 9 62 22 Core Hits 71 | 4 36 31 Critical Kills 3 | . 1 2 Critical Parts Destroyed 2 | . . 2 Critical Strikes 5 | . 1 4 Destroy 5 | . 1 4 Melee Attacks . | . . . Impact . | . . . Slashing . | . . . Piercing . | . . . Sneak Attacks . | . . . Combat Hostiles . | . . . Follow-up Attacks . | . . . Damage Inflicted 2632 | 106 1233 1293 Guns 1290 | 106 951 233 Cannons 99 | . . 99 Explosions 1243 | . 282 961 Melee . | . . . Ramming . | . . . Kinetic 1326 | 64 930 332 Thermal 63 | 42 21 . Explosive 1243 | . 282 961 Electromagnetic . | . . . Impact . | . . . Slashing . | . . . Piercing . | . . . Highest Corruption 3 | . . 3 Average Corruption 3 | . . 3 Corruption Purged . | . . . Corruption Blocked . | . . . Effects 2 | . . 2 Matter Fused 2 | . . 2 Overload Shots . | . . . Overflow Damage 15 | . . 15 Projectiles . | . . . Explosions 15 | . . 15 Melee . | . . . Knockbacks 2 | . . 2 Impact . | . . . Kinetic 2 | . . 2 Secondary . | . . . Self-Inflicted Damage 97 | . 21 76 Shots 5 | . 1 4 Rammed . | . . . Targets Rammed . | . . . Kicked . | . . . Crushed . | . . . Highest Temperature 176 | . 58 176 Average Temperature 39 | . 15 73 Received Heat Transfer 394 | . 54 340 Siege Activations . | . . . Martial Activations . | . . . Shielding Activations . | . . . Robots Disrupted . | . . . Combat Hostiles . | . . . Robots Corrupted . | . . . Combat Hostiles . | . . . Parts Fried . | . . . Impact Corruptions . | . . . Robots Melted . | . . . Combat Hostiles . | . . . Parts Melted . | . . . Heat Transferred 150 | 100 50 . Parts Sabotaged . | . . . Parts Stolen . | . . . Parts Stripped . | . . . Power Chain Reactions . | . . . Alert | -11 -10 -10 ------- Run | Yrd Mat Min Maximum Alert Level . | . . . Low Security (%) 100 | 100 100 100 Level 1 . | . . . Level 2 . | . . . Level 3 . | . . . Level 4 . | . . . Level 5 . | . . . High Security . | . . . Max Security . | . . . Peak Influence 158 | 5 158 71 Initial 23 | . . 23 Average 54 | 1 58 30 Influence Increases 672 | 15 518 139 Destroy 0b10 Robot/C 360 | . 300 60 Destroy 0b10 Robot/NC 75 | 15 60 . Destroy Leader 88 | . 68 20 Successful Hack 14 | . 14 . Disable Machine 30 | . 30 . Destroy Structure 60 | . 31 29 Lose Combat Pursuer 45 | . 15 30 Influence Decreases 672 | 15 458 199 Entered New Map 37 | . . 37 Time Decay 503 | 15 438 50 Lost Part 132 | . 20 112 Squads Dispatched 1 | . 1 . Investigation . | . . . Extermination . | . . . Reinforcement 1 | . 1 . Assault . | . . . Garrison . | . . . Intercept . | . . . Searches Triggered . | . . . Construction Impeded . | . . . Haulers Reinforced . | . . . Active Scanning Responses . | . . . Cargo Convoy Interrupts . | . . . Stealth | -11 -10 -10 --------- Run | Yrd Mat Min Distress Signals 1 | . 1 . Communications Jammed . | . . . Distress Signals . | . . . Times Spotted 57 | . 29 28 Peak Tracking Total 12 | . 5 12 Tactical Retreats 3 | . 1 2 Traps | -11 -10 -10 ------- Run | Yrd Mat Min Traps Triggered 1 | . 1 . Indirectly . | . . . Trap Hack Attempts . | . . . Triggered . | . . . Disarmed . | . . . Reprogrammed . | . . . Reused . | . . . Traps Extracted . | . . . Installed . | . . . Triggered . | . . . Machines | -11 -10 -10 ---------- Run | Yrd Mat Min Machines Disabled 2 | . 2 . Max in Single Turn 1 | . 1 . Machines Repaired . | . . . Machines Dismantled . | . . . Machines Sabotaged . | . . . Overloaded Fab Kills . | . . . Hacking | -11 -10 -10 --------- Run | Yrd Mat Min Machines Accessed 3 | . 3 . Terminals 2 | . 2 . Fabricators . | . . . Repair Stations 1 | . 1 . Recycling Units . | . . . Scanalyzers . | . . . Garrison Access . | . . . Total Hacks 10 | . 10 . Successful 5 | . 5 . Failed 5 | . 5 . Catastrophic 1 | . 1 . Database Lockouts . | . . . Manual 7 | . 7 . Terminals 7 | . 7 . Fabricators . | . . . Repair Stations 3 | . 3 . Recycling Units . | . . . Scanalyzers . | . . . Garrison Access . | . . . Terminal Hacks 2 | . 2 . Robot Analysis 2 | . 2 . Fabricator Hacks . | . . . Repair Station Hacks 1 | . 1 . Scan Component 1 | . 1 . Recycling Unit Hacks . | . . . Scanalyzer . | . . . Garrison Access Hacks . | . . . Unauthorized Hacks 2 | . 2 . Terminals 2 | . 2 . Botnet 2 | . 2 . Fabricators . | . . . Repair Stations . | . . . Recycling Units . | . . . Scanalyzers . | . . . Garrison Access . | . . . Data Cores Recovered . | . . . Used . | . . . Hacking Detections 2 | . 2 . Full Trace Events . | . . . Feedback Events . | . . . Feedback Blocked . | . . . Robot Schematics Acquired . | . . . Robots Built . | . . . Authchips . | . . . Time . | . . . Total Robot Build Rating . | . . . Part Schematics Acquired . | . . . Parts Built . | . . . Authchips . | . . . Time . | . . . Total Part Build Rating . | . . . Part Studies Acquired . | . . . Parts Repaired . | . . . Time . | . . . Parts Recycled . | . . . Recycled Matter . | . . . Retrieved Matter . | . . . Retrieved Components . | . . . Parts Scanalyzed . | . . . Part Schematics Acquired . | . . . Parts Damaged . | . . . Bothacking | -11 -10 -10 ------------ Run | Yrd Mat Min Used RIF Installer . | . . . Robots Hacked . | . . . Non-combat . | . . . Combat . | . . . Robot Hacks Applied . | . . . Relay Couplers Released . | . . . Fabnet Peak Effective % . | . . . Robots Rewired . | . . . Allies Hacked . | . . . Hacks Repelled . | . . . Allies | -11 -10 -10 -------- Run | Yrd Mat Min Total Allies . | . . . Largest Group . | . . . Highest-Rated Group . | . . . Highest-Rated Ally . | . . . Total Orders . | . . . Ally Attacks . | . . . Total Damage . | . . . Kills . | . . . Allies Corrupted . | . . . Allies Melted . | . . . Intel | -11 -10 -10 ------- Run | Yrd Mat Min Active Infowar (turns) 668 | 6 662 . Seismic 668 | 6 662 . Robot Analysis Total 2 | . 2 . Derelict Logs Recovered . | . . . Drone Launches . | . . . Drone Recoveries . | . . . Exploration | -11 -10 -10 ------------- Run | Yrd Mat Min Turns Passed 1767 | 71 1587 109 Spaces Moved 746 | 47 688 11 Core 1 | . . 1 Treads 3 | . . 3 Legs 3 | 3 . . Wheels 739 | 44 688 7 Hover . | . . . Flight . | . . . Fastest Speed 100 | 100 100 175 Average Speed 163 | 101 164 337 Slowest Speed 1450 | 120 175 1450 Overloaded Moves . | . . . Propulsion Burnouts . | . . . Robots Hopped . | . . . Potential Cave-ins . | . . . Cave-ins Triggered . | . . . Exploration Rate (%) 33 | 4 86 10 Regions Visited 2 Branch Regions 1 Pre-discovered Areas . | . . . Known Exits Taken . | . . . Unknown Exits Taken 2 | 1 1 . Scrap Searched . | . . . Spaces Dug . | . . . Terrain Destroyed 89 | . 38 51 Melee . | . . . Projectile 9 | . . 9 AOE 80 | . 38 42 Terrain Rammed . | . . . Walls Destroyed . | . . . Machines Disabled . | . . . Actions | -11 -10 -10 --------- Run | Yrd Mat Min Total 1160 | 59 1050 51 Wait 255 | . 255 . Move 744 | 46 687 11 Hop . | . . . Pick Up 28 | 2 24 2 Fast Attach . | . . . Attach 15 | 3 6 6 Detach . | . . . Swap 10 | . 9 1 Drop 13 | 2 11 . Fire 95 | 6 58 31 Melee . | . . . Ram . | . . . Kick . | . . . Crush . | . . . Escape Stasis . | . . . Rewire . | . . . Trap . | . . . Miscellaneous . | . . . Route ------- -11/Scrapyard -10/Materials (discovered 5 exits: [*Mat x3] / [*Min] / [*Sub]) -10/Mines History --------- Turn | Location | Event 13 | -11/Scrapyard | Discovered new exit (range 3) 72 | -11/Scrapyard | Entered Materials 304 | -10/Materials | Build established: Mutant 368 | -10/Materials | Discovered new exit (range 14) 665 | -10/Materials | Discovered new exit (range 7) 883 | -10/Materials | Discovered new exit (range 10) 972 | -10/Materials | Derelicts attacked the area 1076 | -10/Materials | Discovered new exit (range 15) 1406 | -10/Materials | Discovered new exit (range 13) 1659 | -10/Materials | Entered Mines 1660 | -10/Mines | Assembled infested the area 1665 | -10/Mines | Assisted by a Guerilla fighting off Assembled 1696 | -10/Mines | Met a Derelict bent on vengeance 1719 | -10/Mines | Destroyed 16 combat bots 1725 | -10/Mines | Core integrity fell below 50% 1767 | -10/Mines | Core integrity fell below 20% 1768 | -10/Mines | Destroyed by D-53 Grenadier with Mini Grenade Launcher Last Messages --------------- 01744_ HV Slug penetrates Wall. 01744_ Lgt. Treads destroyed. 01746_ HV Slug penetrates D-53 Grenadier. 01746_ D-53 Grenadier suffers critical hit (Destroy). 01746_ D-53 Grenadier destroyed. 01747_ System corrupted: Matter fused (-7). 01750_ D-53 Grenadier knocked back. 01751_ The unstable cave ceiling collapses. 01757_ Bore Cannon destroyed. 01759_ Hrd. Light Armor Plating destroyed. 01759_ Com. Wheel destroyed. 01760_ The unstable cave ceiling collapses. 01761_ U-05 Engineer lays Concrete. 01763_ U-05 Engineer builds a Wall. 01765_ The unstable cave ceiling collapses. 01766_ Ion Engine destroyed. 01766_ G-34 Mercenary destroyed. 01768_ The unstable cave ceiling collapses. 01768_ U-05 Engineer lays Concrete. Map ----- +----------------------------------------------------+ | | | | | | | | | | | | | | | | | | | | | | | | | | | | | | | ??????????????? ## ???????????????????????? | | ????????????#### ###???###??????????????? | | ???????????## # ##?# ##?????????????? | | ???????????? " # ## #?????????????? | | ????????????? # # ##????????????? | | ?????????????? ## ?????????? | | ???????????????## ?????????? | | ??????????????### * ????????? | | ??????????????# % u ??????????? | | ??????????????# ##????????????? | | ??????????????# @ #?????????????? | | ??????????????# #?????????????? | | ??????????????# ! ###?????????????? | | ?????????????#;; # ###???????????????? | | ?????????????### d ##?????????????????? | | ???????????????## ##??????????????????? | | ????????????????#% ######???????????????????? | | ???????????????? ????????????????????????? | | ??????????????? ????????????????????????? | | ?????????????? % ????????????????????????? | | ????????????? #????????????????????????? | | ???????????? #### #?????????????????????????? | | ??????????? #???# ??????????????????????????? | | ??????????##????# ??????????????????????????? | | ????????????????##??????????????????????????? | | ????????????????????????????????????????????? | | ????????????????????????????????????????????? | | ????????????????????????????????????????????? | | ????????????????????????????????????????????? | | ????????????????????????????????????????????? | | ????????????????????????????????????????????? | | ????????????????????????????????????????????? | | ????????????????????????????????????????????? | | ????????????????????????????????????????????? | | ????????????????????????????????????????????? | +----------------------------------------------------+ Best States ------------- Heat Dissipation 25 Energy Generation 10 Energy Capacity 250 Matter Stores 300 Matter Capacity 300 Sight Range 16 Terrain Scan Density 10 Armor Coverage 150 Evasion (%) 40 Recoil Reduction 2 Item Schematics ----------------- None Robot Schematics ------------------ None Fabricated ------------ Nothing Repaired ---------- Nothing Studied --------- None Alien Tech Used ----------------- None Achievements -------------- None Challenges ------------ None Game ------ Seed UltimateExplosivePropulsion Manual? 0 Play Time 00:19:01 Cumulative 71.3 hours Start 2026.04.07 @ 15:39:57 End 2026.04.07 @ 15:56:23 Sessions 1 Manual Loads 0 Difficulty Rogue Special Mode None Game No. 64 Rogue 54 Adventurer 9 Explorer 1 Win Type - Total 0 Types 0/0/0/0/0/0/0/0/0/0 Lore% 37 Gallery% 34 Achievement% 27 Wizard Run 0 Options --------- Layout 2 ASCII 0 Keyboard 0 Movement Mouse Keybinds 0 Fullscreen 1 Font 48/Terminus Map View 50x44 Zoom Use 0% Tactical HUD 1 Map Filters NONE Filters NONE Steam 1 RUN: 2f13ec11-f9a6-40b3-b136-b023ecc9b4e8